fUSD/lending_fUSD_20260418
["ID","MTS","AMOUNT","RATE_DAILY","PERIOD"]
[420676685,1776457841223,-269.0,0.00010319,7]
[420676686,1776457841232,-276.0,0.00010319,7]
[420676687,1776457841241,-308.0,0.00010322,30]
[420676688,1776457841251,-294.0,0.00010322,30]
[420676689,1776457841260,-150.0,0.00010345,2]
[420676690,1776457841269,-175.7233,0.0001037,2]
[420676691,1776457841278,-175.7233,0.0001037,2]
[420676692,1776457841288,-150.0,0.00010372,2]
[420676693,1776457841297,-136106.43350707,0.00010379,2]
[420676694,1776457841306,-200.0,0.00010379,2]
[420676695,1776457841315,-200.0,0.00010379,2]
[420676696,1776457841325,-200.0,0.00010379,2]
[420676697,1776457841334,-150.0,0.0001041,2]
[420676698,1776457841344,-1500.0,0.00010414,2]
[420676699,1776457841353,-2500.0,0.00010414,2]
[420676700,1776457841363,-237.45189709,0.00010414,2]
[420676701,1776457841372,-269.0,0.00010459,7]
[420676702,1776457841382,-1337.0,0.0001046,5]
[420676703,1776457841391,-829.12830338,0.00010463,2]
[420676704,1776457841400,-194.72792766,0.00010463,2]
[420676705,1776457841414,-156.76835146,0.00010463,2]
[420676706,1776457841429,-150.0,0.00010466,2]
[420676707,1776457841442,-150.0,0.00010466,2]
[420676708,1776457841454,-200.0,0.00010483,2]
[420676709,1776457841466,-200.0,0.00010483,2]
[420676710,1776457841479,-150.0,0.00010507,2]
[420676711,1776457841491,-4142.0,0.00010548,2]
[420676712,1776457841501,-200.0,0.00010548,2]
[420676713,1776457841511,-150.0,0.00010561,2]
[420676714,1776457841524,-200.0,0.00010588,2]
[420676715,1776457841536,-200.0,0.00010588,2]
[420676716,1776457841548,-9154.7214257,0.000106,2]
[420676717,1776457841560,-5000.0,0.000106,2]
[420676718,1776457841572,-150.0,0.00010636,2]
[420676719,1776457841584,-150.0,0.00010668,2]
[420676720,1776457841596,-500.0,0.00010673,2]
[420676721,1776457841608,-200.0,0.00010693,2]
[420676722,1776457841620,-200.0,0.00010693,2]
[420676723,1776457841631,-151.0,0.00010697,2]
[420676724,1776457841643,-702.0,0.000107,5]
[420676725,1776457841655,-1150.0,0.000107,5]
[420676726,1776457841668,-299261.64420428,0.000107,2]
[420676727,1776457841680,-30175.12421083,0.000107,2]
[420676728,1776457841699,-215673.57781381,0.000107,2]
[420676729,1776457841711,-3020.5,0.00010714,2]
[420676730,1776457841722,-150.0,0.00010749,2]
[420676731,1776457841733,-150.0,0.00010749,2]
[420676732,1776457841744,-150.0,0.00010749,2]
[420676733,1776457841756,-150.0,0.00010749,2]
[420676734,1776457841767,-150.0,0.00010749,2]
[420676735,1776457841777,-200.0,0.000108,2]
[420676736,1776457841788,-200.0,0.000108,2]
[420676737,1776457841797,-700.0,0.000108,3]
[420676738,1776457841808,-150.0,0.0001083,2]
[420676739,1776457841820,-150.0,0.00010862,2]
[420676740,1776457841830,-14730.25258619,0.000109,2]
[420676741,1776457841856,-842.23050392,0.000109,2]
[420676742,1776457841888,-4260.6368868,0.000109,2]
[420676743,1776457841912,-9561.50740717,0.000109,2]
[420676744,1776457842169,-17004.0,0.000109,2]
[420676745,1776457842189,-335.18001523,0.000109,2]
[420676746,1776457842207,-337.5122011,0.000109,2]
[420676747,1776457842236,-72986.92362711,0.000109,2]
[420676748,1776457842248,-1500.0,0.000109,3]
[420676749,1776457842259,-150.0,0.00010938,2]
[420676750,1776457842270,-200.0,0.00010959,2]
[420676751,1776457842282,-500.0,0.00010959,2]
[420676752,1776457842293,-150.0,0.00010959,2]
[420676753,1776457842304,-3477.47,0.00010959,2]
[420676754,1776457842315,-3000.0,0.00010962,2]
[420676755,1776457842327,-1345.0,0.00010967,2]
[420676756,1776457842338,-536.0,0.00010967,2]
[420676757,1776457842349,-250.0,0.00010987,2]
[420676758,1776457842360,-348.26,0.00010989,2]
[420676759,1776457842371,-150.0,0.00010989,2]
[420676760,1776457842382,-150.0,0.00010992,2]
[420676761,1776457842393,-311.92,0.00010995,2]
[420676762,1776457842405,-6016.27830976,0.00011,2]
[420676763,1776457842417,-951.87979164,0.00011011,2]
[420676764,1776457842429,-201.93286099,0.00011011,2]
[420676765,1776457842440,-150.0,0.00011032,2]
[420676766,1776457842454,-150.0,0.00011032,2]
[420676767,1776457842466,-150.0,0.00011089,2]
[420676768,1776457842478,-151.0,0.00011096,2]
[420676769,1776457842489,-151.0,0.00011096,2]
[420676770,1776457842501,-151.0,0.00011096,2]
[420676771,1776457842512,-151.0,0.00011096,2]
[420676772,1776457842523,-200.0,0.00011096,2]
[420676773,1776457842534,-300.0,0.00011098,2]
[420676774,1776457842548,-155.0,0.00011098,2]
[420676775,1776457842559,-47485.69820309,0.00011099,2]
[420676776,1776457842571,-47485.69820307,0.00011099,2]
[420676777,1776457842582,-28729.9936496,0.00011099,2]
[420676778,1776457842660,-299.3081687,0.00011099,2]
[420676779,1776457842675,-1000.0,0.00011099,2]
[420676780,1776457842696,-550.0,0.00011099,2]
[420676790,1776457843487,-651.47969507,9.943e-05,2]
[420676793,1776457843509,-5376.52030493,9.943e-05,2]
[420676794,1776457843520,-16906.39638477,0.00011099,2]
[420676795,1776457843532,-47485.69820307,0.00011099,2]
[420676796,1776457843543,-47485.69820307,0.00011099,2]
[420676800,1776457845230,-47485.69820307,0.00011099,2]
[420676801,1776457845259,-47485.69820307,0.00011099,2]
[420676802,1776457845298,-13703.80292656,0.00011099,2]
[420676803,1776457845321,-13703.80292648,0.00011099,2]
[420676804,1776457845330,-13703.80292648,0.00011099,2]
[420676805,1776457845340,-13703.80292648,0.00011099,2]
[420676806,1776457845351,-13703.80292648,0.00011099,2]
[420676807,1776457845360,-13703.80292648,0.00011099,2]
[420676808,1776457845369,-13703.80292648,0.00011099,2]
[420676809,1776457845379,-13703.80292648,0.00011099,2]
[420676810,1776457845389,-2300.0,0.000111,4]
[420676811,1776457845398,-599.90291584,0.0001111,2]
[420676812,1776457845408,-1600.0,0.00011121,2]
[420676813,1776457845418,-150.0,0.00011126,2]
[420676814,1776457845428,-185.8519702,0.00011151,2]
[420676815,1776457845437,-150.0,0.00011153,2]
[420676816,1776457845456,-151.0,0.00011168,2]
[420676817,1776457845468,-3100.0,0.000112,4]
[420676818,1776457845478,-503.45930392,0.00011221,2]
[420676819,1776457845488,-47485.69820307,0.00011272,2]
[420676820,1776457845498,-150.0,0.00011277,2]
[420676821,1776457845508,-7201.4701294,0.00011282,2]
[420676822,1776457845518,-3800.0,0.000113,4]
[420676823,1776457845529,-168.23,0.00011301,2]
[420676824,1776457845539,-2000.0,0.00011301,2]
[420676825,1776457845549,-284.23043053,0.00011315,2]
[420676826,1776457845559,-150.0,0.00011315,2]
[420676827,1776457845568,-150.0,0.00011315,2]
[420676828,1776457845578,-150.0,0.00011315,2]
[420676829,1776457845588,-294.30223267,0.00011315,2]
[420676830,1776457845598,-150.0,0.00011315,2]
[420676831,1776457845608,-246.82370859,0.00011315,2]
[420676832,1776457845618,-150.0,0.00011315,2]
[420676833,1776457845628,-150.0,0.00011315,2]
[420676834,1776457845638,-150.0,0.00011397,2]
[420676835,1776457845648,-700.0,0.000114,4]
[420676836,1776457845659,-5412.16992427,0.0001149,2]
[420676837,1776457845690,-387.83007573,0.0001149,2]
[420676838,1776457845700,-216.16992427,0.00011499,2]
[420676839,1776457845712,-1882.14744404,0.00011499,2]
[420676841,1776457845862,-3701.68263169,0.00011499,2]
[420676842,1776457845873,-700.0,0.000115,4]
[420676843,1776457845884,-4332.08,0.00011507,2]
[420676844,1776457845894,-5800.0,0.00011507,2]
[420676845,1776457845905,-3396.38901845,0.0001151,2]
[420676846,1776457845916,-721.12765535,0.00011558,2]
[420676847,1776457845927,-209.40437684,0.00011559,2]
[420676848,1776457845937,-47485.69820307,0.00011586,2]
[420676849,1776457845948,-700.0,0.000116,4]
[420676850,1776457845959,-200.0,0.00011644,2]
[420676851,1776457845969,-2000.0,0.000117,2]
[420676852,1776457845979,-700.0,0.000117,4]
[420676854,1776457845990,-2333.0,0.000117,2]
[420676855,1776457846000,-150.0,0.00011726,2]
[420676856,1776457846011,-151.0,0.00011757,2]
[420676857,1776457846021,-12811.08306698,0.0001176,2]
[420676858,1776457846031,-150.0,0.00011766,2]
[420676859,1776457846042,-1300.0,0.000118,4]
[420676860,1776457846052,-150.0,0.00011824,2]
[420676861,1776457846062,-150.0,0.00011828,2]
[420676862,1776457846073,-13215.3345638,0.00011895,2]
[420676863,1776457846083,-303.70194317,0.00011899,2]
[420676864,1776457846094,-300.0,0.00011899,2]
[420676865,1776457846104,-300.0,0.00011899,2]
[420676866,1776457846114,-28235.77985892,0.000119,2]
[420676867,1776457846125,-2000.0,0.000119,2]
[420676868,1776457846137,-47485.69820307,0.000119,2]
[420676869,1776457846148,-181.618816,0.00011997,2]
[420676870,1776457846158,-360.58710416,0.00011999,2]
[420676871,1776457846168,-300.0,0.00011999,2]
[420676872,1776457846181,-190.59558939,0.00011999,2]
[420676873,1776457846191,-300.0,0.00011999,2]
[420676874,1776457846201,-300.0,0.00011999,2]
[420676875,1776457846211,-925475.72658077,0.00012,2]
[420676876,1776457846225,-878714.4195973,0.00012,2]
[420676877,1776457846238,-14882.07279104,0.00012,2]
[420676879,1776457846917,-335.819307,8.869e-05,2]
[420676883,1776457876712,-46.180693,8.869e-05,2]
[420676884,1776457876722,-150.0,0.00010959,2]
[420676885,1776457876731,-13703.80292648,0.00011484,2]
[420676886,1776457876741,-18470392.36175657,0.00012,2]
[420676887,1776457876750,-17460377.96314829,0.00012,2]
[420676888,1776457876760,-150.0,0.00012,2]
[420676889,1776457876770,-1000.0,0.00012,2]
[420676890,1776457876780,-959.67363155,0.00012,2]
[420676891,1776457876789,-959.67363155,0.00012,7]
[420676892,1776457876799,-10000000.0,0.00012,2]
[420676893,1776457876809,-1013.0,0.00012,2]
[420676894,1776457876819,-1347037.76717111,0.00012,2]
[420676895,1776457876830,-10000.0,0.00012,2]
[420676896,1776457876840,-232.67232123,0.00012,2]
[420676897,1776457876850,-232.67232123,0.00012,7]
[420676898,1776457876860,-2279585.67353819,0.00012,2]
[420676899,1776457876869,-1667559.86682486,0.00012,2]
[420676900,1776457876882,-176097.25348742,0.00012,2]
[420676901,1776457876891,-30000.0,0.00012,2]
[420676902,1776457876901,-138748.01845486,0.00012,2]
[420676903,1776457876910,-500.0,0.00012,2]
[420676904,1776457876920,-500.0,0.00012,2]
[420676905,1776457876929,-500.0,0.00012,2]
[420676906,1776457876938,-500.0,0.00012,2]
[420676907,1776457876948,-500.0,0.00012,2]
[420676908,1776457876957,-500.0,0.00012,2]
[420676909,1776457876966,-500.0,0.00012,2]
[420676910,1776457876976,-500.0,0.00012,2]
[420676911,1776457876985,-500.0,0.00012,2]
[420676912,1776457876994,-500.0,0.00012,2]
[420676913,1776457877003,-500.0,0.00012,2]
[420676914,1776457877013,-500.0,0.00012,2]
[420676915,1776457877022,-500.0,0.00012,2]
[420676916,1776457877032,-500.0,0.00012,2]
[420676917,1776457877042,-500.0,0.00012,2]
[420676918,1776457877051,-500.0,0.00012,2]
[420676919,1776457877060,-500.0,0.00012,2]
[420676920,1776457877069,-500.0,0.00012,2]
[420676921,1776457877078,-4712.1,0.00012,2]
[420676922,1776457877087,-2000.0,0.00012,2]
[420676923,1776457877096,-1169.81,0.00012,2]
[420676924,1776457877106,-186.62430266,0.00012,2]
[420676925,1776457877115,-478.29563735,0.00012,2]
[420676926,1776457877124,-151.0,0.00012,2]
[420676927,1776457877133,-151.0,0.00012,2]
[420676928,1776457877143,-151.0,0.00012,2]
[420676929,1776457877152,-151.0,0.00012,2]
[420676930,1776457877161,-151.0,0.00012,2]
[420676931,1776457877170,-151.0,0.00012,2]
[420676932,1776457877179,-151.0,0.00012,2]
[420676933,1776457877189,-151.0,0.00012,2]
[420676934,1776457877199,-263.538918,0.00012,2]
[420676935,1776457877208,-151.0,0.00012,2]
[420676936,1776457877218,-151.0,0.00012,2]
[420676937,1776457877228,-151.0,0.00012,2]
[420676938,1776457877237,-151.0,0.00012,2]
[420676939,1776457877246,-151.0,0.00012,2]
[420676940,1776457877255,-151.0,0.00012,2]
[420676941,1776457877264,-151.0,0.00012,2]
[420676942,1776457877273,-296.449807,0.00012,2]
[420676943,1776457877284,-151.0,0.00012,2]
[420676944,1776457877294,-151.0,0.00012,2]
[420676945,1776457877303,-151.0,0.00012,2]
[420676946,1776457877312,-151.0,0.00012,2]
[420676947,1776457877322,-270.669766,0.00012,2]
[420676948,1776457877331,-1119.83,0.00012,2]
[420676949,1776457877340,-151.0,0.00012,2]
[420676950,1776457877349,-151.0,0.00012,2]
[420676951,1776457877358,-151.0,0.00012,2]
[420676952,1776457877367,-1655.924948,0.00012,2]
[420676953,1776457877377,-1655.924948,0.00012,2]
[420676954,1776457877387,-1655.924948,0.00012,2]
[420676955,1776457877397,-1655.924948,0.00012,2]
[420676956,1776457877406,-1655.924948,0.00012,2]
[420676957,1776457877416,-1655.924948,0.00012,2]
[420676958,1776457877426,-1655.924948,0.00012,2]
[420676959,1776457877436,-1655.924948,0.00012,2]
[420676960,1776457877448,-1655.924948,0.00012,2]
[420676961,1776457877457,-1655.924948,0.00012,2]
[420676962,1776457877466,-1655.924948,0.00012,2]
[420676963,1776457877476,-1655.924948,0.00012,2]
[420676964,1776457877485,-200.0,0.00012,2]
[420676965,1776457877495,-600.0,0.00012015,2]
[420676966,1776457877504,-53045.37,0.00012055,2]
[420676967,1776457877514,-416.92,0.00012087,2]
[420676968,1776457877523,-212.02610148,0.00012107,2]
[420676969,1776457877533,-7255.98,0.0001211,2]
[420676970,1776457877544,-1600.0,0.00012132,2]
[420676971,1776457877555,-74087.5658244,0.00012132,2]
[420676972,1776457877566,-1505.9863538,0.00012134,2]
[420676973,1776457877575,-185.8519702,0.00012167,2]
[420676974,1776457877585,-200.0,0.00012192,2]
[420676975,1776457877595,-206.56,0.00012237,2]
[420676976,1776457877604,-170.20459719,0.00012242,4]
[420676977,1776457877614,-150.0,0.00012247,2]
[420676978,1776457877625,-4544.91,0.0001227,2]
[420676979,1776457877634,-1119.83,0.00012274,2]
[420676980,1776457877643,-800.0,0.00012329,12]
[420676981,1776457877653,-168.23,0.00012329,2]
[420676982,1776457877663,-2000.0,0.00012329,2]
[420676983,1776457877672,-306.35879134,0.00012335,4]
[420676984,1776457877681,-153.17939567,0.00012336,4]
[420676985,1776457877692,-352.73,0.00012372,2]
[420676986,1776457877703,-7201.4701294,0.00012401,2]
[420676987,1776457877713,-206.53627409,0.0001251,2]
[420676988,1776457877723,-150.0,0.00012521,2]
[420676989,1776457877732,-1119.83,0.00012548,2]
[420676990,1776457877742,-16531.1704274,0.00012572,2]
[420676991,1776457877752,-336.0309763,0.00012573,2]
[420676992,1776457877762,-300.0,0.00012669,2]
[420676993,1776457877771,-300.0,0.00012669,2]
[420676994,1776457877781,-300.0,0.00012669,2]
[420676995,1776457877790,-86133.89672513,0.0001267,7]
[420676996,1776457877802,-200.0,0.0001274,2]
[420676997,1776457877811,-163.99121597,0.00012795,2]
[420676998,1776457877821,-1119.83,0.00012822,2]
[420676999,1776457877831,-150.0,0.00012833,2]
[420677000,1776457877842,-1265.0,0.00012837,2]
[420677001,1776457877852,-1219.0,0.00012837,2]
[420677002,1776457877864,-926.0,0.00012837,2]
[420677003,1776457877874,-1047.0,0.00012837,2]
[420677004,1776457877884,-274.35,0.00012877,2]
[420677005,1776457877895,-300.0,0.00012892,2]
[420677006,1776457877905,-300.0,0.00012892,2]
[420677007,1776457877915,-2816.0,0.00012893,2]
[420677008,1776457877925,-2816.0,0.00012893,2]
[420677009,1776457877934,-2816.0,0.00012893,2]
[420677010,1776457877944,-2816.0,0.00012893,2]
[420677011,1776457877956,-2816.0,0.00012893,2]
[420677012,1776457877966,-2816.0,0.00012893,2]
[420677013,1776457877975,-2816.0,0.00012893,2]
[420677014,1776457877985,-2816.0,0.00012893,2]
[420677015,1776457877996,-2084.0,0.00012893,2]
[420677016,1776457878007,-162.0,0.00012893,2]
[420677017,1776457878017,-162.0,0.00012893,2]
[420677018,1776457878027,-162.0,0.00012893,2]
[420677019,1776457878036,-162.0,0.00012893,2]
[420677020,1776457878046,-2816.0,0.00012893,2]
[420677021,1776457878055,-162.0,0.00012893,2]
[420677022,1776457878065,-2816.0,0.00012893,2]
[420677023,1776457878075,-162.0,0.00012893,2]
[420677024,1776457878085,-162.0,0.00012893,2]
[420677025,1776457878095,-2816.0,0.00012893,2]
[420677026,1776457878106,-162.0,0.00012893,2]
[420677027,1776457878116,-2816.0,0.00012893,2]
[420677028,1776457878126,-162.0,0.00012893,2]
[420677029,1776457878136,-2816.0,0.00012893,2]
[420677030,1776457878146,-162.0,0.00012893,2]
[420677031,1776457878155,-2816.0,0.00012893,2]
[420677032,1776457878165,-162.0,0.00012893,2]
[420677033,1776457878174,-2816.0,0.00012893,2]
[420677034,1776457878184,-162.0,0.00012893,2]
[420677035,1776457878195,-2816.0,0.00012893,2]
[420677036,1776457878205,-2816.0,0.00012893,2]
[420677037,1776457878214,-2816.0,0.00012893,2]
[420677038,1776457878224,-2816.0,0.00012893,2]
[420677039,1776457878234,-2816.0,0.00012893,2]
[420677040,1776457878245,-2816.0,0.00012893,2]
[420677041,1776457878256,-2816.0,0.00012893,2]
[420677042,1776457878266,-2816.0,0.00012893,2]
[420677043,1776457878276,-2816.0,0.00012893,2]
[420677044,1776457878285,-2816.0,0.00012893,2]
[420677045,1776457878294,-2816.0,0.00012893,2]
[420677046,1776457878303,-2816.0,0.00012893,2]
[420677047,1776457878313,-1575.0,0.00012893,2]
[420677048,1776457878322,-1575.0,0.00012893,2]
[420677049,1776457878333,-1575.0,0.00012893,2]
[420677050,1776457878343,-1033.0,0.00012893,2]
[420677051,1776457878355,-162.0,0.00012893,2]
[420677052,1776457878366,-2816.0,0.00012893,2]
[420677053,1776457878375,-162.0,0.00012893,2]
[420677054,1776457878384,-2816.0,0.00012893,2]
[420677055,1776457878393,-1668.0,0.00012893,2]
[420677056,1776457878402,-1575.0,0.00012893,2]
[420677057,1776457878411,-1575.0,0.00012893,2]
[420677058,1776457878422,-1575.0,0.00012893,2]
[420677059,1776457878433,-162.0,0.00012893,2]
[420677060,1776457878444,-2816.0,0.00012893,2]
[420677061,1776457878455,-162.0,0.00012893,2]
[420677062,1776457878465,-2816.0,0.00012893,2]
[420677063,1776457878477,-162.0,0.00012893,2]
[420677064,1776457878487,-2798.0,0.00012893,2]
[420677065,1776457878497,-1575.0,0.00012893,2]
[420677066,1776457878507,-1575.0,0.00012893,2]
[420677067,1776457878517,-1575.0,0.00012893,2]
[420677068,1776457878526,-1575.0,0.00012893,2]
[420677069,1776457878537,-1571.0,0.00012893,2]
[420677070,1776457878548,-162.0,0.00012893,2]
[420677071,1776457878558,-162.0,0.00012893,2]
[420677072,1776457878681,-166.0,0.00012893,2]
[420677073,1776457878691,-162.0,0.00012893,2]
[420677074,1776457878702,-162.0,0.00012893,2]
[420677075,1776457878711,-162.0,0.00012893,2]
[420677076,1776457878720,-1575.0,0.00012893,2]
[420677077,1776457878730,-2816.0,0.00012893,2]
[420677078,1776457878739,-162.0,0.00012893,2]
[420677079,1776457878749,-1575.0,0.00012893,2]
[420677080,1776457878758,-2816.0,0.00012893,2]
[420677081,1776457878768,-162.0,0.00012893,2]
[420677082,1776457878777,-1575.0,0.00012893,2]
[420677083,1776457878787,-2816.0,0.00012893,2]
[420677084,1776457878796,-1575.0,0.00012893,2]
[420677085,1776457878805,-2816.0,0.00012893,2]
[420677086,1776457878814,-1575.0,0.00012893,2]
[420677087,1776457878824,-1574.0,0.00012893,2]
[420677088,1776457878833,-2816.0,0.00012893,2]
[420677089,1776457878843,-808.0,0.00012893,2]
[420677090,1776457878852,-162.0,0.00012893,2]
[420677091,1776457878861,-1575.0,0.00012893,2]
[420677092,1776457878871,-1575.0,0.00012893,2]
[420677093,1776457878879,-1575.0,0.00012893,2]
[420677094,1776457878889,-1575.0,0.00012893,2]
[420677095,1776457878898,-1575.0,0.00012893,2]
[420677096,1776457878908,-1575.0,0.00012893,2]
[420677097,1776457878917,-1575.0,0.00012893,2]
[420677098,1776457878927,-1575.0,0.00012893,2]
[420677099,1776457878936,-1575.0,0.00012893,2]
[420677100,1776457878946,-1575.0,0.00012893,2]
[420677101,1776457878957,-1575.0,0.00012893,2]
[420677102,1776457878967,-1575.0,0.00012893,2]
[420677103,1776457878976,-1575.0,0.00012893,2]
[420677104,1776457878986,-1575.0,0.00012893,2]
[420677105,1776457878995,-1575.0,0.00012893,2]
[420677106,1776457879006,-1575.0,0.00012893,2]
[420677107,1776457879015,-162.0,0.00012893,2]
[420677108,1776457879025,-2816.0,0.00012893,2]
[420677109,1776457879034,-162.0,0.00012893,2]
[420677110,1776457879044,-2816.0,0.00012893,2]
[420677111,1776457879054,-163.0,0.00012893,2]
[420677112,1776457879063,-2816.0,0.00012893,2]
[420677113,1776457879072,-2816.0,0.00012893,2]
[420677114,1776457879082,-874.0,0.00012893,2]
[420677115,1776457879091,-1575.0,0.00012893,2]
[420677116,1776457879100,-1575.0,0.00012893,2]
[420677117,1776457879109,-1575.0,0.00012893,2]
[420677118,1776457879119,-289.087,0.00012943,2]
[420677119,1776457879129,-1000.0,0.00013,2]
[420677120,1776457879139,-250.0,0.00013,2]
[420677121,1776457879149,-150.0,0.00013047,2]
[420677122,1776457879159,-5397.30599151,0.0001305,2]
[420677123,1776457879167,-1119.83,0.00013096,2]
[420677124,1776457879178,-185.8519702,0.00013182,2]
[420677125,1776457879188,-600.0,0.00013199,2]
[420677126,1776457879199,-1119.83,0.0001337,2]
[420677127,1776457879209,-3240.0,0.00013425,2]
[420677128,1776457879218,-1000.0,0.000135,2]
[420677129,1776457879227,-676.0,0.000135,2]
[420677130,1776457879236,-206.56,0.00013516,2]
[420677131,1776457879246,-7201.4701294,0.00013521,2]
[420677132,1776457879255,-595.0,0.00013562,2]
[420677133,1776457879265,-10000.0,0.000136,2]
[420677134,1776457879275,-1119.83,0.00013644,2]
[420677135,1776457879284,-400.12597604,0.00013688,2]
[420677136,1776457879294,-500.0,0.00013698,2]
[420677137,1776457879304,-514.82,0.00013698,2]
[420677138,1776457879313,-514.82,0.00013698,2]
[420677139,1776457879323,-514.82,0.00013698,2]
[420677140,1776457879333,-514.82,0.00013698,2]
[420677141,1776457879342,-514.82,0.00013698,2]
[420677142,1776457879352,-514.82,0.00013698,2]
[420677143,1776457879361,-514.82,0.00013698,2]
[420677144,1776457879371,-514.82,0.00013698,2]
[420677145,1776457879380,-514.82,0.00013698,2]
[420677146,1776457879390,-514.82,0.00013698,2]
[420677147,1776457879399,-514.82,0.00013698,2]
[420677148,1776457879408,-514.82,0.00013698,2]
[420677149,1776457879418,-514.82,0.00013698,2]
[420677150,1776457879428,-514.82,0.00013698,2]
[420677151,1776457879437,-514.82,0.00013698,2]
[420677152,1776457879447,-514.82,0.00013698,2]
[420677153,1776457879456,-514.82,0.00013698,2]
[420677154,1776457879466,-514.82,0.00013698,2]
[420677155,1776457879476,-514.82,0.00013698,2]
[420677156,1776457879485,-514.82,0.00013698,2]
[420677157,1776457879495,-514.82,0.00013698,2]
[420677158,1776457879504,-514.82,0.00013698,2]
[420677159,1776457879514,-514.82,0.00013698,2]
[420677160,1776457879524,-515.04,0.00013698,2]
[420677161,1776457879533,-1027.64,0.00013698,2]
[420677162,1776457879543,-1027.64,0.00013698,2]
[420677163,1776457879552,-1027.64,0.00013698,2]
[420677164,1776457879562,-1027.64,0.00013698,2]
[420677165,1776457879571,-1027.64,0.00013698,2]
[420677166,1776457879580,-1027.64,0.00013698,2]
[420677167,1776457879590,-1027.64,0.00013698,2]
[420677168,1776457879601,-1027.64,0.00013698,2]
[420677169,1776457879610,-1027.64,0.00013698,2]
[420677170,1776457879619,-1027.64,0.00013698,2]
[420677171,1776457879629,-1027.64,0.00013698,2]
[420677172,1776457879639,-1027.64,0.00013698,2]
[420677173,1776457879648,-1027.64,0.00013698,2]
[420677174,1776457879657,-1027.64,0.00013698,2]
[420677175,1776457879667,-1027.64,0.00013698,2]
[420677176,1776457879676,-1027.64,0.00013698,2]
[420677177,1776457879685,-1027.64,0.00013698,2]
[420677178,1776457879694,-1027.64,0.00013698,2]
[420677179,1776457879704,-1027.64,0.00013698,2]
[420677180,1776457879714,-1027.64,0.00013698,2]
[420677181,1776457879724,-1027.64,0.00013698,2]
[420677182,1776457879734,-1027.64,0.00013698,2]
[420677183,1776457879743,-1027.64,0.00013698,2]
[420677184,1776457879753,-1027.75452259,0.00013698,2]
[420677185,1776457879762,-500.0,0.00013698,2]
[420677186,1776457879771,-500.0,0.00013698,2]
[420677187,1776457879782,-500.0,0.00013698,2]
[420677188,1776457879792,-500.0,0.00013698,2]
[420677189,1776457879802,-500.0,0.00013698,2]
[420677190,1776457879811,-500.0,0.00013698,2]
[420677191,1776457879821,-500.0,0.00013698,2]
[420677192,1776457879830,-500.0,0.00013698,2]
[420677193,1776457879841,-500.0,0.00013698,2]
[420677194,1776457879851,-450.10916802,0.00013698,2]
[420677195,1776457879861,-500.0,0.00013698,2]
[420677196,1776457879870,-500.0,0.00013698,2]
[420677197,1776457879879,-500.0,0.00013698,2]
[420677198,1776457879888,-500.0,0.00013698,2]
[420677199,1776457879898,-500.0,0.00013698,2]
[420677200,1776457879907,-500.0,0.00013698,2]
[420677201,1776457879917,-500.0,0.00013698,2]
[420677202,1776457879927,-500.0,0.00013698,2]
[420677203,1776457879936,-500.0,0.00013698,2]
[420677204,1776457879945,-500.0,0.00013698,2]